fUSD/lending_fUSD_20240527
["ID","MTS","AMOUNT","RATE_DAILY","PERIOD"]
[328017541,1716773521018,-500.0,0.00030136,4]
[328017542,1716773521029,-500.0,0.00030136,4]
[328017543,1716773521040,-309.67791618,0.00030136,4]
[328017544,1716773521050,-500.0,0.00030136,4]
[328017545,1716773521060,-500.0,0.00030136,4]
[328017546,1716773521069,-397.48412164,0.00030136,4]
[328017547,1716773521078,-150.0,0.00030136,4]
[328017548,1716773521089,-500.0,0.00030136,4]
[328017549,1716773521099,-514.0,0.00030136,4]
[328017550,1716773521108,-500.0,0.00030136,4]
[328017551,1716773521118,-500.0,0.00030136,4]
[328017552,1716773521130,-241.52,0.00030136,4]
[328017553,1716773521139,-500.0,0.00030136,4]
[328017554,1716773521149,-500.0,0.00030136,4]
[328017555,1716773521159,-500.0,0.00030136,4]
[328017556,1716773521169,-500.0,0.00030136,4]
[328017557,1716773521178,-509.3,0.00030136,4]
[328017558,1716773521187,-500.0,0.00030136,4]
[328017559,1716773521198,-500.0,0.00030136,4]
[328017560,1716773521207,-500.0,0.00030136,4]
[328017561,1716773521216,-500.0,0.00030136,4]
[328017562,1716773521226,-500.0,0.00030136,4]
[328017563,1716773521235,-500.0,0.00030136,4]
[328017564,1716773521244,-500.0,0.00030136,4]
[328017565,1716773521253,-512.9449836,0.00030136,4]
[328017566,1716773521263,-500.0,0.00030136,4]
[328017567,1716773521272,-500.0,0.00030136,4]
[328017568,1716773521281,-618.09,0.00030136,4]
[328017569,1716773521290,-520.8,0.00030136,4]
[328017570,1716773521299,-500.0,0.00030136,4]
[328017571,1716773521308,-500.0,0.00030136,4]
[328017572,1716773521317,-500.0,0.00030136,4]
[328017573,1716773521326,-500.0,0.00030136,4]
[328017574,1716773521336,-500.0,0.00030136,4]
[328017575,1716773521346,-500.0,0.00030136,4]
[328017576,1716773521355,-500.0,0.00030136,4]
[328017577,1716773521364,-500.0,0.00030136,4]
[328017578,1716773521373,-500.0,0.00030136,4]
[328017579,1716773521382,-500.0,0.00030136,4]
[328017580,1716773521391,-500.0,0.00030136,4]
[328017581,1716773521401,-500.0,0.00030136,4]
[328017582,1716773521410,-500.0,0.00030136,4]
[328017583,1716773521419,-500.0,0.00030136,4]
[328017584,1716773521428,-500.0,0.00030136,4]
[328017585,1716773521437,-500.0,0.00030136,4]
[328017586,1716773521446,-500.0,0.00030136,4]
[328017587,1716773521456,-500.0,0.00030136,4]
[328017588,1716773521465,-500.0,0.00030136,4]
[328017589,1716773521474,-525.03,0.00030136,4]
[328017590,1716773521483,-500.0,0.00030136,4]
[328017591,1716773521492,-500.0,0.00030136,4]
[328017592,1716773521502,-500.0,0.00030136,4]
[328017593,1716773521511,-500.0,0.00030136,4]
[328017594,1716773521520,-539.9,0.00030136,4]
[328017595,1716773521529,-657.09,0.00030136,4]
[328017596,1716773521539,-500.0,0.00030136,4]
[328017597,1716773521548,-500.0,0.00030136,4]
[328017598,1716773521558,-500.0,0.00030136,4]
[328017599,1716773521568,-500.0,0.00030136,4]
[328017600,1716773521577,-531.72,0.00030136,4]
[328017601,1716773521586,-500.0,0.00030136,4]
[328017602,1716773521597,-284.32,0.00030136,4]
[328017603,1716773521606,-750.33,0.00030136,4]
[328017604,1716773521615,-500.0,0.00030136,4]
[328017605,1716773521625,-500.0,0.00030136,4]
[328017606,1716773521634,-500.0,0.00030136,4]
[328017607,1716773521644,-500.0,0.00030136,4]
[328017608,1716773521653,-743.01,0.00030136,4]
[328017609,1716773521662,-500.0,0.00030136,4]
[328017610,1716773521671,-500.0,0.00030136,4]
[328017611,1716773521680,-500.0,0.00030136,4]
[328017612,1716773521690,-500.0,0.00030136,4]
[328017613,1716773521700,-500.0,0.00030136,4]
[328017614,1716773521709,-613.12,0.00030136,4]
[328017615,1716773521718,-500.0,0.00030136,4]
[328017616,1716773521728,-500.0,0.00030136,4]
[328017617,1716773521740,-500.0,0.00030136,4]
[328017618,1716773521750,-500.0,0.00030136,4]
[328017619,1716773521760,-633.92,0.00030136,4]
[328017620,1716773521769,-500.0,0.00030136,4]
[328017621,1716773521779,-500.0,0.00030136,4]
[328017622,1716773521787,-500.0,0.00030136,4]
[328017623,1716773521796,-674.79,0.00030136,4]
[328017624,1716773521805,-500.0,0.00030136,4]
[328017625,1716773521815,-395.98928336,0.00030136,4]
[328017626,1716773521824,-500.0,0.00030136,4]
[328017627,1716773521838,-500.0,0.00030136,4]
[328017628,1716773521847,-637.71,0.00030136,4]
[328017629,1716773521856,-500.0,0.00030136,4]
[328017630,1716773521865,-500.0,0.00030136,4]
[328017631,1716773521875,-500.0,0.00030136,4]
[328017632,1716773521884,-610.35,0.00030136,4]
[328017633,1716773521893,-565.63,0.00030136,4]
[328017634,1716773521903,-500.0,0.00030136,4]
[328017635,1716773521915,-500.0,0.00030136,4]
[328017636,1716773521925,-500.0,0.00030136,4]
[328017637,1716773521934,-500.0,0.00030136,4]
[328017638,1716773521943,-1112.41,0.00030136,4]
[328017639,1716773521952,-500.0,0.00030136,4]
[328017640,1716773521962,-500.0,0.00030136,4]
[328017641,1716773521971,-518.47,0.00030136,4]
[328017642,1716773521981,-500.0,0.00030136,4]
[328017643,1716773521990,-500.0,0.00030136,4]
[328017644,1716773522000,-820.24,0.00030136,4]
[328017645,1716773522009,-500.0,0.00030136,4]
[328017646,1716773522020,-500.0,0.00030136,4]
[328017647,1716773522029,-591.89,0.00030136,4]
[328017648,1716773522038,-500.0,0.00030136,4]
[328017649,1716773522047,-813.92,0.00030136,4]
[328017650,1716773522057,-500.0,0.00030136,4]
[328017651,1716773522065,-500.0,0.00030136,4]
[328017652,1716773522074,-500.0,0.00030136,4]
[328017653,1716773522084,-500.0,0.00030136,4]
[328017654,1716773522093,-446.80282072,0.00030136,4]
[328017655,1716773522102,-500.0,0.00030136,4]
[328017656,1716773522111,-500.0,0.00030136,4]
[328017657,1716773522277,-1037.2,0.00030136,4]
[328017658,1716773522287,-500.0,0.00030136,4]
[328017659,1716773522296,-1002.02,0.00030136,4]
[328017660,1716773522306,-1135.33,0.00030136,4]
[328017661,1716773522315,-500.0,0.00030136,4]
[328017662,1716773522325,-696.41,0.00030136,4]
[328017663,1716773522334,-526.63,0.00030136,4]
[328017664,1716773522344,-500.0,0.00030136,4]
[328017665,1716773522354,-659.81,0.00030136,4]
[328017666,1716773522363,-566.26,0.00030136,4]
[328017667,1716773522372,-724.95,0.00030136,4]
[328017668,1716773522382,-715.24,0.00030136,4]
[328017669,1716773522392,-500.0,0.00030136,4]
[328017670,1716773522401,-500.0,0.00030136,4]
[328017671,1716773522411,-500.0,0.00030136,4]
[328017672,1716773522420,-537.11,0.00030136,4]
[328017673,1716773522429,-1115.92,0.00030136,4]
[328017674,1716773522438,-514.34,0.00030136,4]
[328017675,1716773522448,-500.0,0.00030136,4]
[328017676,1716773522457,-500.0,0.00030136,4]
[328017677,1716773522466,-500.0,0.00030136,4]
[328017678,1716773522475,-500.0,0.00030136,4]
[328017679,1716773522485,-500.0,0.00030136,4]
[328017680,1716773522494,-1161.05,0.00030136,4]
[328017681,1716773522503,-500.0,0.00030136,4]
[328017682,1716773522512,-657.79,0.00030136,4]
[328017683,1716773522522,-500.0,0.00030136,4]
[328017684,1716773522531,-516.96,0.00030136,4]
[328017685,1716773522541,-500.0,0.00030136,4]
[328017686,1716773522550,-513.43,0.00030136,4]
[328017687,1716773522559,-563.52,0.00030136,4]
[328017688,1716773522568,-553.3,0.00030136,4]
[328017689,1716773522577,-500.0,0.00030136,4]
[328017690,1716773522586,-590.37,0.00030136,4]
[328017691,1716773522596,-500.0,0.00030136,4]
[328017692,1716773522605,-500.0,0.00030136,4]
[328017693,1716773522614,-500.0,0.00030136,4]
[328017694,1716773522623,-500.0,0.00030136,4]
[328017695,1716773522633,-500.0,0.00030136,4]
[328017696,1716773522643,-500.0,0.00030136,4]
[328017697,1716773522653,-500.0,0.00030136,4]
[328017698,1716773522662,-500.0,0.00030136,4]
[328017699,1716773522672,-677.81,0.00030136,4]
[328017700,1716773522681,-640.38,0.00030136,4]
[328017701,1716773522691,-500.0,0.00030136,4]
[328017702,1716773522700,-500.0,0.00030136,4]
[328017703,1716773522709,-689.4,0.00030136,4]
[328017704,1716773522719,-500.0,0.00030136,4]
[328017705,1716773522727,-500.0,0.00030136,4]
[328017706,1716773522737,-566.57,0.00030136,4]
[328017707,1716773522746,-1225.47,0.00030136,4]
[328017708,1716773522756,-500.0,0.00030136,4]
[328017709,1716773522765,-500.0,0.00030136,4]
[328017710,1716773522775,-652.09,0.00030136,4]
[328017711,1716773522784,-921.84,0.00030136,4]
[328017712,1716773522793,-500.0,0.00030136,4]
[328017713,1716773522803,-796.9,0.00030136,4]
[328017714,1716773522812,-531.92,0.00030136,4]
[328017715,1716773522821,-500.0,0.00030136,4]
[328017716,1716773522832,-620.92895228,0.00030136,4]
[328017717,1716773522843,-500.0,0.00030136,4]
[328017718,1716773522852,-911.01,0.00030136,4]
[328017719,1716773522862,-500.0,0.00030136,4]
[328017720,1716773522872,-1333.61,0.00030136,4]
[328017721,1716773522881,-500.0,0.00030136,4]
[328017722,1716773522891,-641.37,0.00030136,4]
[328017723,1716773522900,-500.0,0.00030136,4]
[328017724,1716773522909,-500.0,0.00030136,4]
[328017725,1716773522920,-500.0,0.00030136,4]
[328017726,1716773522930,-537.92,0.00030136,4]
[328017727,1716773522939,-514.48,0.00030136,4]
[328017728,1716773522948,-500.0,0.00030136,4]
[328017729,1716773522957,-500.0,0.00030136,4]
[328017730,1716773522967,-1275.39,0.00030136,4]
[328017731,1716773522976,-500.0,0.00030136,4]
[328017732,1716773522985,-275.65619969,0.00030136,4]
[328017733,1716773522994,-1100.98,0.00030136,4]
[328017734,1716773523003,-509.36,0.00030136,4]
[328017735,1716773523013,-500.0,0.00030136,4]
[328017736,1716773523022,-500.0,0.00030136,4]
[328017737,1716773523032,-500.0,0.00030136,4]
[328017738,1716773523041,-500.0,0.00030136,4]
[328017739,1716773523051,-690.87,0.00030136,4]
[328017740,1716773523060,-500.0,0.00030136,4]
[328017741,1716773523069,-1641.89,0.00030136,4]
[328017742,1716773523078,-500.0,0.00030136,4]
[328017743,1716773523087,-500.0,0.00030136,4]
[328017744,1716773523097,-500.0,0.00030136,4]
[328017745,1716773523106,-500.0,0.00030136,4]
[328017746,1716773523115,-500.0,0.00030136,4]
[328017747,1716773523124,-500.0,0.00030136,4]
[328017748,1716773523135,-289.72,0.00030136,4]
[328017749,1716773523144,-500.0,0.00030136,4]
[328017750,1716773523153,-500.0,0.00030136,4]
[328017751,1716773523162,-500.0,0.00030136,4]
[328017752,1716773523171,-935.12,0.00030136,4]
[328017753,1716773523181,-500.0,0.00030136,4]
[328017754,1716773523190,-500.0,0.00030136,4]
[328017755,1716773523200,-677.22,0.00030136,4]
[328017756,1716773523208,-1013.07,0.00030136,4]
[328017757,1716773523218,-528.44,0.00030136,4]
[328017758,1716773523228,-500.0,0.00030136,4]
[328017759,1716773523237,-552.18,0.00030136,4]
[328017760,1716773523247,-500.0,0.00030136,4]
[328017761,1716773523256,-861.85,0.00030136,4]
[328017762,1716773523266,-858.84,0.00030136,4]
[328017763,1716773523276,-500.0,0.00030136,4]
[328017764,1716773523286,-514.59687138,0.00030136,4]
[328017765,1716773523296,-500.0,0.00030136,4]
[328017766,1716773523305,-500.0,0.00030136,4]
[328017767,1716773523316,-500.0,0.00030136,4]
[328017768,1716773523325,-811.31,0.00030136,4]
[328017769,1716773523334,-549.95,0.00030136,4]
[328017770,1716773523344,-452.28072224,0.00030136,4]
[328017771,1716773523353,-500.0,0.00030136,4]
[328017772,1716773523362,-500.0,0.00030136,4]
[328017773,1716773523372,-500.0,0.00030136,4]
[328017774,1716773523381,-620.92,0.00030136,4]
[328017775,1716773523402,-742.45,0.00030136,4]
[328017776,1716773523411,-500.0,0.00030136,4]
[328017777,1716773523421,-500.0,0.00030136,4]
[328017778,1716773523430,-500.0,0.00030136,4]
[328017779,1716773523440,-500.0,0.00030136,4]
[328017780,1716773523449,-500.0,0.00030136,4]
[328017781,1716773523459,-500.0,0.00030136,4]
[328017782,1716773523468,-611.76,0.00030136,4]
[328017783,1716773523477,-500.0,0.00030136,4]
[328017784,1716773523487,-319.79469026,0.00030136,4]
[328017785,1716773523496,-500.0,0.00030136,4]
[328017786,1716773523505,-1162.24,0.00030136,4]
[328017787,1716773523514,-500.0,0.00030136,4]
[328017788,1716773523524,-500.0,0.00030136,4]
[328017789,1716773523534,-803.05,0.00030136,4]
[328017790,1716773523546,-722.78,0.00030136,4]
[328017791,1716773523556,-500.0,0.00030136,4]
[328017792,1716773523567,-500.0,0.00030136,4]
[328017793,1716773523577,-958.44,0.00030136,4]
[328017794,1716773523586,-500.0,0.00030136,4]
[328017795,1716773523597,-665.19,0.00030136,4]
[328017796,1716773523606,-500.0,0.00030136,4]
[328017797,1716773523615,-500.0,0.00030136,4]
[328017798,1716773523625,-501.8,0.00030136,4]
[328017799,1716773523634,-500.0,0.00030136,4]
[328017800,1716773523644,-500.0,0.00030136,4]
[328017801,1716773523653,-742.73,0.00030136,4]
[328017802,1716773523663,-500.0,0.00030136,4]
[328017803,1716773523673,-1148.79,0.00030136,4]
[328017804,1716773523683,-500.0,0.00030136,4]
[328017805,1716773523694,-684.31,0.00030136,4]
[328017806,1716773523704,-868.94,0.00030136,4]
[328017807,1716773523715,-500.0,0.00030136,4]
[328017808,1716773523724,-500.0,0.00030136,4]
[328017809,1716773523734,-555.76,0.00030136,4]
[328017810,1716773523743,-500.0,0.00030136,4]
[328017811,1716773523752,-500.0,0.00030136,4]
[328017812,1716773523762,-1021.87,0.00030136,4]
[328017813,1716773523771,-500.0,0.00030136,4]
[328017814,1716773523781,-771.51,0.00030136,4]
[328017815,1716773523792,-500.0,0.00030136,4]
[328017816,1716773523802,-500.0,0.00030136,4]
[328017817,1716773523813,-500.0,0.00030136,4]
[328017818,1716773523822,-1127.03,0.00030136,4]
[328017819,1716773523831,-500.0,0.00030136,4]
[328017820,1716773523844,-500.0,0.00030136,4]
[328017821,1716773523853,-568.94,0.00030136,4]
[328017822,1716773523861,-792.94,0.00030136,4]
[328017823,1716773523870,-500.0,0.00030136,4]
[328017824,1716773523881,-1040.28,0.00030136,4]
[328017825,1716773523890,-500.0,0.00030136,4]
[328017826,1716773523900,-500.0,0.00030136,4]
[328017827,1716773523910,-565.33,0.00030136,4]
[328017828,1716773523919,-621.99,0.00030136,4]
[328017829,1716773523928,-248.11,0.00030136,4]
[328017830,1716773523937,-500.0,0.00030136,4]
[328017831,1716773523946,-500.0,0.00030136,4]
[328017832,1716773523955,-590.75,0.00030136,4]
[328017833,1716773523964,-641.85,0.00030136,4]
[328017834,1716773523974,-500.0,0.00030136,4]
[328017835,1716773523982,-500.0,0.00030136,4]
[328017836,1716773523991,-849.19,0.00030136,4]
[328017837,1716773524000,-500.0,0.00030136,4]
[328017838,1716773524009,-889.12,0.00030136,4]
[328017839,1716773524018,-530.16,0.00030136,4]
[328017840,1716773524028,-536.89,0.00030136,4]
[328017841,1716773524037,-500.0,0.00030136,4]
[328017842,1716773524047,-1259.29,0.00030136,4]
[328017843,1716773524056,-500.0,0.00030136,4]
[328017844,1716773524065,-500.0,0.00030136,4]
[328017845,1716773524075,-520.35892583,0.00030136,4]
[328017846,1716773524083,-500.0,0.00030136,4]
[328017847,1716773524093,-500.0,0.00030136,4]
[328017848,1716773524103,-647.32,0.00030136,4]
[328017849,1716773524112,-776.42,0.00030136,4]
[328017850,1716773524122,-568.42,0.00030136,4]
[328017851,1716773524131,-1677.95,0.00030136,4]
[328017852,1716773524140,-646.9,0.00030136,4]
[328017853,1716773524150,-660.3,0.00030136,4]
[328017854,1716773524159,-537.3,0.00030136,4]
[328017855,1716773524168,-500.0,0.00030136,4]
[328017856,1716773524176,-500.0,0.00030136,4]
[328017857,1716773524186,-2614.52,0.00030136,4]
[328017858,1716773524195,-579.16,0.00030136,4]
[328017859,1716773524204,-1322.14,0.00030136,4]
[328017860,1716773524214,-969.5,0.00030136,4]
[328017861,1716773524223,-500.0,0.00030136,4]
[328017862,1716773524232,-609.69,0.00030136,4]
[328017863,1716773524241,-500.0,0.00030136,4]
[328017864,1716773524252,-500.0,0.00030136,4]
[328017865,1716773524262,-506.32,0.00030136,4]
[328017866,1716773524271,-500.0,0.00030136,4]
[328017867,1716773524280,-1140.34,0.00030136,4]
[328017868,1716773524290,-1339.71,0.00030136,4]
[328017869,1716773524299,-859.67,0.00030136,4]
[328017870,1716773524308,-673.21,0.00030136,4]
[328017871,1716773524318,-7686.08,0.00030136,4]
[328017872,1716773524327,-1172.21,0.00030136,4]
[328017873,1716773524337,-500.0,0.00030136,4]
[328017874,1716773524346,-1287.8,0.00030136,4]
[328017875,1716773524356,-500.0,0.00030136,4]
[328017876,1716773524365,-500.0,0.00030136,4]
[328017877,1716773524374,-1037.45,0.00030136,4]
[328017878,1716773524399,-900.49,0.00030136,4]
[328017879,1716773524408,-507.12,0.00030136,4]
[328017880,1716773524418,-735.66,0.00030136,4]
[328017881,1716773524428,-500.0,0.00030136,4]
[328017882,1716773524437,-500.0,0.00030136,4]
[328017883,1716773524446,-2771.58,0.00030136,4]
[328017884,1716773524455,-500.0,0.00030136,4]
[328017885,1716773524465,-500.0,0.00030136,4]
[328017886,1716773524474,-500.0,0.00030136,4]
[328017887,1716773524483,-3172.21,0.00030136,4]
[328017888,1716773524492,-500.0,0.00030136,4]
[328017889,1716773524501,-1674.57,0.00030136,4]
[328017890,1716773524511,-500.0,0.00030136,4]
[328017891,1716773524520,-500.0,0.00030136,4]
[328017892,1716773524530,-2746.18,0.00030136,4]
[328017893,1716773524539,-527.2,0.00030136,4]
[328017894,1716773524549,-500.0,0.00030136,4]
[328017895,1716773524558,-6205.95,0.00030136,4]
[328017896,1716773524567,-500.0,0.00030136,4]
[328017897,1716773524577,-638.94707147,0.00030136,4]
[328017898,1716773524586,-892.56,0.00030136,4]
[328017899,1716773524595,-706.36,0.00030136,4]
[328017900,1716773524604,-500.0,0.00030136,4]
[328017901,1716773524613,-1206.85,0.00030136,4]
[328017902,1716773524622,-2601.64,0.00030136,4]
[328017903,1716773524631,-627.83,0.00030136,4]
[328017904,1716773524641,-500.0,0.00030136,4]
[328017905,1716773524651,-500.0,0.00030136,4]
[328017906,1716773524660,-500.0,0.00030136,4]
[328017907,1716773524815,-906.32,0.00030136,4]
[328017908,1716773524825,-500.0,0.00030136,4]
[328017909,1716773524837,-1301.17,0.00030136,4]
[328017910,1716773524846,-1348.74,0.00030136,4]
[328017911,1716773524855,-500.0,0.00030136,4]
[328017912,1716773524864,-1356.31,0.00030136,4]
[328017913,1716773524875,-690.34,0.00030136,4]
[328017914,1716773524884,-500.0,0.00030136,4]
[328017915,1716773524893,-500.0,0.00030136,4]
[328017916,1716773524903,-500.0,0.00030136,4]
[328017917,1716773524914,-500.0,0.00030136,4]
[328017918,1716773524924,-296.90139007,0.00030136,4]
[328017919,1716773524934,-2143.83,0.00030136,4]
[328017920,1716773524943,-2383.33,0.00030136,4]
[328017921,1716773524952,-500.0,0.00030136,4]
[328017922,1716773524962,-500.0,0.00030136,4]
[328017923,1716773524971,-500.0,0.00030136,4]
[328017924,1716773524981,-500.0,0.00030136,4]
[328017925,1716773524990,-1576.4,0.00030136,4]
[328017926,1716773525000,-1713.46,0.00030136,4]
[328017927,1716773525010,-786.1,0.00030136,4]
[328017928,1716773525019,-1532.05,0.00030136,4]
[328017929,1716773525029,-3324.33,0.00030136,4]
[328017930,1716773525039,-500.0,0.00030136,4]
[328017931,1716773525048,-1197.25,0.00030136,4]
[328017932,1716773525058,-908.76,0.00030136,4]
[328017933,1716773525067,-606.23,0.00030136,4]
[328017934,1716773525077,-500.0,0.00030136,4]
[328017935,1716773525086,-500.0,0.00030136,4]
[328017936,1716773525097,-881.49,0.00030136,4]
[328017937,1716773525107,-500.0,0.00030136,4]
[328017938,1716773525117,-760.48,0.00030136,4]
[328017939,1716773525126,-500.0,0.00030136,4]
[328017940,1716773525136,-1016.57,0.00030136,4]
[328017941,1716773525146,-10252.41,0.00030136,4]
[328017942,1716773525157,-601.05,0.00030136,4]
[328017943,1716773525167,-984.73,0.00030136,4]
[328017944,1716773525176,-879.73,0.00030136,4]
[328017945,1716773525186,-500.0,0.00030136,4]
[328017946,1716773525196,-1296.31,0.00030136,4]
[328017947,1716773525206,-913.5,0.00030136,4]
[328017948,1716773525216,-500.0,0.00030136,4]
[328017949,1716773525226,-627.73,0.00030136,4]
[328017950,1716773525236,-12959.85,0.00030136,4]
[328017951,1716773525247,-635.84,0.00030136,4]
[328017952,1716773525263,-1152.84,0.00030136,4]
[328017953,1716773525273,-500.0,0.00030136,4]
[328017954,1716773525283,-1257.91,0.00030136,4]
[328017955,1716773525292,-500.0,0.00030136,4]
[328017956,1716773525301,-1837.75,0.00030136,4]
[328017957,1716773525311,-500.0,0.00030136,4]
[328017958,1716773525320,-2024.08,0.00030136,4]
[328017959,1716773525329,-500.0,0.00030136,4]
[328017960,1716773525342,-500.0,0.00030136,4]
[328017961,1716773525357,-1234.35,0.00030136,4]
[328017962,1716773525366,-602.61,0.00030136,4]
[328017963,1716773525376,-1687.26,0.00030136,4]
[328017964,1716773525385,-500.0,0.00030136,4]
[328017965,1716773525396,-500.0,0.00030136,4]
[328017966,1716773525405,-500.0,0.00030136,4]
[328017967,1716773525414,-500.0,0.00030136,4]
[328017968,1716773525424,-500.0,0.00030136,4]
[328017969,1716773525433,-869.6,0.00030136,4]
[328017970,1716773525444,-572.54,0.00030136,4]
[328017971,1716773525453,-500.0,0.00030136,4]
[328017972,1716773525463,-1160.09,0.00030136,4]
[328017973,1716773525473,-915.48,0.00030136,4]
[328017974,1716773525482,-894.59,0.00030136,4]
[328017975,1716773525491,-500.0,0.00030136,4]
[328017976,1716773525501,-1359.95,0.00030136,4]
[328017977,1716773525510,-500.0,0.00030136,4]
[328017978,1716773525519,-777.55,0.00030136,4]
[328017979,1716773525529,-500.0,0.00030136,4]
[328017980,1716773525539,-955.96,0.00030136,4]
[328017981,1716773525548,-500.0,0.00030136,4]
[328017982,1716773525557,-590.73,0.00030136,4]
[328017983,1716773525567,-500.0,0.00030136,4]
[328017984,1716773525576,-413.5297,0.00030136,4]
[328017985,1716773525585,-824.44,0.00030136,4]
[328017986,1716773525596,-1899.17,0.00030136,4]
[328017987,1716773525606,-500.0,0.00030136,4]
[328017988,1716773525615,-709.3,0.00030136,4]
[328017989,1716773525624,-500.0,0.00030136,4]
[328017990,1716773525634,-1522.47,0.00030136,4]
[328017991,1716773525643,-726.34,0.00030136,4]
[328017992,1716773525654,-500.0,0.00030136,4]
[328017993,1716773525663,-1111.07,0.00030136,4]
[328017994,1716773525672,-6862.17,0.00030136,4]
[328017995,1716773525682,-1636.35,0.00030136,4]
[328017996,1716773525691,-500.0,0.00030136,4]
[328017997,1716773525701,-977.11,0.00030136,4]
[328017998,1716773525710,-879.18,0.00030136,4]
[328017999,1716773525719,-1153.21,0.00030136,4]
[328018000,1716773525729,-688.44,0.00030136,4]
[328018001,1716773525738,-706.27,0.00030136,4]
[328018002,1716773525747,-500.0,0.00030136,4]
[328018003,1716773525756,-500.0,0.00030136,4]
[328018004,1716773525766,-1139.88,0.00030136,4]
[328018005,1716773525776,-500.0,0.00030136,4]
[328018006,1716773525786,-500.0,0.00030136,4]
[328018007,1716773525796,-1445.7,0.00030136,4]
[328018008,1716773525805,-818.95,0.00030136,4]
[328018009,1716773525815,-500.0,0.00030136,4]
[328018010,1716773525824,-2130.92,0.00030136,4]
[328018011,1716773525839,-3583.63,0.00030136,4]
[328018012,1716773525848,-5398.85,0.00030136,4]
[328018013,1716773525857,-874.92,0.00030136,4]
[328018014,1716773525867,-1049.53,0.00030136,4]
[328018015,1716773525877,-6155.22,0.00030136,4]
[328018016,1716773525887,-2307.64,0.00030136,4]
[328018017,1716773525897,-500.0,0.00030136,4]
[328018018,1716773525907,-500.0,0.00030136,4]
[328018019,1716773525917,-647.85,0.00030136,4]
[328018020,1716773525927,-500.0,0.00030136,4]
[328018021,1716773525936,-461.06,0.00030136,4]
[328018022,1716773525945,-1590.14,0.00030136,4]
[328018023,1716773525955,-1987.82,0.00030136,4]
[328018024,1716773525964,-4196.44,0.00030136,4]
[328018025,1716773525983,-500.0,0.00030136,4]
[328018026,1716773525999,-1672.39,0.00030136,4]
[328018027,1716773526018,-1529.19,0.00030136,4]
[328018028,1716773526036,-500.0,0.00030136,4]
[328018029,1716773526057,-500.0,0.00030136,4]
[328018030,1716773526074,-3193.96,0.00030136,4]
[328018031,1716773526091,-1357.3,0.00030136,4]
[328018032,1716773526105,-2967.77,0.00030136,4]
[328018033,1716773526122,-500.0,0.00030136,4]
[328018034,1716773526142,-500.0,0.00030136,4]
[328018035,1716773526157,-1331.17,0.00030136,4]
[328018036,1716773526172,-953.21,0.00030136,4]
[328018037,1716773526188,-683.81,0.00030136,4]
[328018038,1716773526204,-621.07,0.00030136,4]
[328018039,1716773526217,-3518.53,0.00030136,4]
[328018040,1716773526235,-707.14,0.00030136,4]